[Event "Live Chess"]
[Site "Chess.com"]
[Date "2024.06.02"]
[Round "-"]
[White "bobby_jamesFischer86"]
[Black "juniortay"]
[Result "1-0"]
[WhiteElo "1647"]
[BlackElo "2337"]
[TimeControl "300"]
[EndTime "6:09:40 PDT"]
[Termination "bobby_jamesFischer86 won by resignation"]

1. d4 {[%clk 0:04:57.8]} 1... d5 {[%clk 0:04:58.6]} 2. c4 {[%clk 0:04:56.2]}
2... e6 {[%clk 0:04:57.7]} 3. Nc3 {[%clk 0:04:55.9]} 3... c5 {[%clk 0:04:56.4]}
4. cxd5 {[%clk 0:04:55]} 4... exd5 {[%clk 0:04:56.3]} 5. e3 {[%clk 0:04:53.4]}
5... Nc6 {[%clk 0:04:55.7]} 6. Nf3 {[%clk 0:04:52.2]} 6... Nf6 {[%clk
0:04:55.3]} 7. Bb5 {[%clk 0:04:50.5]} 7... cxd4 {[%clk 0:04:54.3]} 8. Nxd4
{[%clk 0:04:49.1]} 8... Bd7 {[%clk 0:04:53.8]} 9. Nxc6 {[%clk 0:04:47.6]} 9...
bxc6 {[%clk 0:04:52.5]} 10. Bd3 {[%clk 0:04:46.1]} 10... Bd6 {[%clk 0:04:51.6]}
11. O-O {[%clk 0:04:42.2]} 11... O-O {[%clk 0:04:50.7]} 12. f4 {[%clk
0:04:40.1]} 12... Re8 {[%clk 0:04:49.3]} 13. Re1 {[%clk 0:04:37.2]} 13... Rb8
{[%clk 0:04:46.8]} 14. b3 {[%clk 0:04:34.9]} 14... Qe7 {[%clk 0:04:42]} 15. Bb2
{[%clk 0:04:32.5]} 15... Bc5 {[%clk 0:04:40.9]} 16. Bc1 {[%clk 0:04:26.8]} 16...
d4 {[%clk 0:04:29.3]} 17. Na4 {[%clk 0:04:23]} 17... dxe3 {[%clk 0:04:28.6]} 18.
Nxc5 {[%clk 0:04:20.3]} 18... Qxc5 {[%clk 0:04:27.7]} 19. Qe2 {[%clk 0:04:16]}
19... Bg4 {[%clk 0:04:24.3]} 20. Qc2 {[%clk 0:04:11.5]} 20... e2+ {[%clk
0:04:17.1]} 21. Qxc5 {[%clk 0:04:09]} 1-0

[Event "Live Chess"]
[Site "Chess.com"]
[Date "2024.06.02"]
[Round "-"]
[White "PETROMICH1967"]
[Black "ACM42"]
[Result "0-1"]
[WhiteElo "1351"]
[BlackElo "2214"]
[TimeControl "300"]
[EndTime "6:09:55 PDT"]
[Termination "ACM42 won on time"]

1. e4 {[%clk 0:04:54.8]} 1... e6 {[%clk 0:04:58.6]} 2. Nf3 {[%clk 0:04:51]} 2...
c5 {[%clk 0:04:56.5]} 3. b4 {[%clk 0:04:50.3]} 3... cxb4 {[%clk 0:04:51.1]} 4.
d4 {[%clk 0:04:48.6]} 4... d5 {[%clk 0:04:50.2]} 5. e5 {[%clk 0:04:45.4]} 5...
Nc6 {[%clk 0:04:48.9]} 6. a3 {[%clk 0:04:42.4]} 6... bxa3 {[%clk 0:04:45.4]} 7.
Bxa3 {[%clk 0:04:39.4]} 7... Bxa3 {[%clk 0:04:43.8]} 8. Rxa3 {[%clk 0:04:36]}
8... Nge7 {[%clk 0:04:42.6]} 9. Bd3 {[%clk 0:04:34.2]} 9... Nf5 {[%clk
0:04:35.2]} 10. c3 {[%clk 0:04:30.2]} 10... h5 {[%clk 0:04:32.2]} 11. O-O {[%clk
0:04:29.3]} 11... g6 {[%clk 0:04:28.8]} 12. h3 {[%clk 0:04:25.2]} 12... Bd7
{[%clk 0:04:21.7]} 13. Nbd2 {[%clk 0:03:56.8]} 13... Qe7 {[%clk 0:04:14.6]} 14.
Rb3 {[%clk 0:03:46.7]} 14... Na5 {[%clk 0:04:13.4]} 15. Rb4 {[%clk 0:03:40.7]}
15... b6 {[%clk 0:04:12.3]} 16. Qe2 {[%clk 0:03:15.7]} 16... Kf8 {[%clk
0:04:10.4]} 17. Rfb1 {[%clk 0:03:10.5]} 17... Rc8 {[%clk 0:04:05.7]} 18. Rc1
{[%clk 0:02:53.5]} 18... Kg7 {[%clk 0:04:03.5]} 19. g4 {[%clk 0:02:40.4]} 19...
hxg4 {[%clk 0:04:02]} 20. hxg4 {[%clk 0:02:38.5]} 20... Nh4 {[%clk 0:03:50.3]}
21. Nh2 {[%clk 0:02:06.5]} 21... Rxc3 {[%clk 0:02:33.9]} 22. Rxc3 {[%clk
0:01:57.3]} 22... Qxb4 {[%clk 0:02:32.8]} 23. Rc7 {[%clk 0:01:50.8]} 23... Be8
{[%clk 0:02:14.7]} 24. Rxa7 {[%clk 0:01:29.4]} 24... Qxd4 {[%clk 0:02:12.6]} 25.
Ndf3 {[%clk 0:01:03.2]} 25... Nxf3+ {[%clk 0:02:06.8]} 26. Qxf3 {[%clk
0:00:59.1]} 26... Qxe5 {[%clk 0:02:01.5]} 27. Nf1 {[%clk 0:00:55.7]} 27... Nc6
{[%clk 0:01:58.2]} 28. Rb7 {[%clk 0:00:35.6]} 28... Qd4 {[%clk 0:01:46.2]} 29.
Bb5 {[%clk 0:00:21.4]} 29... Ne5 {[%clk 0:01:40.8]} 0-1

[Event "Live Chess"]
[Site "Chess.com"]
[Date "2024.06.02"]
[Round "-"]
[White "RichardABates"]
[Black "Ferrarifan27"]
[Result "1-0"]
[WhiteElo "2344"]
[BlackElo "2142"]
[TimeControl "300"]
[EndTime "6:10:26 PDT"]
[Termination "RichardABates won - game abandoned"]

1. d4 {[%clk 0:04:57.5]} 1... Nf6 {[%clk 0:04:57.1]} 2. Nf3 {[%clk 0:04:56.3]}
2... d5 {[%clk 0:04:53.5]} 3. c4 {[%clk 0:04:54.8]} 3... e6 {[%clk 0:04:52.2]}
4. g3 {[%clk 0:04:52.9]} 4... Be7 {[%clk 0:04:50.7]} 5. Bg2 {[%clk 0:04:51.3]}
5... O-O {[%clk 0:04:50.1]} 6. O-O {[%clk 0:04:50.2]} 6... dxc4 {[%clk
0:04:47.5]} 7. Qc2 {[%clk 0:04:48.7]} 7... Bd7 {[%clk 0:04:46.7]} 8. Qxc4 {[%clk
0:04:46.6]} 8... Bc6 {[%clk 0:04:45.9]} 9. Nc3 {[%clk 0:04:44.4]} 9... Nbd7
{[%clk 0:04:44.1]} 10. Re1 {[%clk 0:04:41.9]} 10... Nb6 {[%clk 0:04:43]} 11. Qd3
{[%clk 0:04:38.8]} 11... Nbd5 {[%clk 0:04:31.9]} 12. a3 {[%clk 0:04:30.8]} 12...
Nxc3 {[%clk 0:04:30]} 13. Qxc3 {[%clk 0:04:19.4]} 13... h6 {[%clk 0:04:15.2]}
14. b3 {[%clk 0:03:41.3]} 14... Qd5 {[%clk 0:03:57.7]} 15. Bb2 {[%clk
0:03:37.6]} 15... Rac8 {[%clk 0:03:54.7]} 16. Rac1 {[%clk 0:03:10.9]} 16... Ne4
{[%clk 0:03:43.8]} 17. Qc2 {[%clk 0:03:05.1]} 17... Qd8 {[%clk 0:03:21.9]} 18.
Ne5 {[%clk 0:03:02.5]} 18... Bd5 {[%clk 0:03:18.2]} 19. Bxe4 {[%clk 0:03:00.5]}
1-0

[Event "Live Chess"]
[Site "Chess.com"]
[Date "2024.06.02"]
[Round "-"]
[White "GMMickeyAdams"]
[Black "Ninifu"]
[Result "1-0"]
[WhiteElo "2800"]
[BlackElo "2007"]
[TimeControl "300"]
[EndTime "6:10:32 PDT"]
[Termination "GMMickeyAdams won on time"]

1. Nf3 {[%clk 0:04:56.7]} 1... Nf6 {[%clk 0:04:58.5]} 2. d4 {[%clk 0:04:54.2]}
2... g6 {[%clk 0:04:57]} 3. Nbd2 {[%clk 0:04:52.7]} 3... Bg7 {[%clk 0:04:51.2]}
4. e4 {[%clk 0:04:51]} 4... d5 {[%clk 0:04:50.4]} 5. e5 {[%clk 0:04:48.3]} 5...
Ne4 {[%clk 0:04:49.7]} 6. Bd3 {[%clk 0:04:47.5]} 6... Bf5 {[%clk 0:04:35.8]} 7.
Qe2 {[%clk 0:04:45.7]} 7... Nxd2 {[%clk 0:04:21.7]} 8. Bxd2 {[%clk 0:04:43.9]}
8... Bxd3 {[%clk 0:04:18.4]} 9. Qxd3 {[%clk 0:04:43.4]} 9... e6 {[%clk
0:04:11.6]} 10. h4 {[%clk 0:04:38.4]} 10... h5 {[%clk 0:04:08]} 11. Bg5 {[%clk
0:04:29.5]} 11... Qd7 {[%clk 0:04:04.6]} 12. O-O {[%clk 0:04:25.5]} 12... Na6
{[%clk 0:04:01.9]} 13. c3 {[%clk 0:04:24.1]} 13... c5 {[%clk 0:03:59.3]} 14. Qe3
{[%clk 0:04:20.6]} 14... Rc8 {[%clk 0:03:55.9]} 15. Rac1 {[%clk 0:04:16.8]}
15... O-O {[%clk 0:03:52.5]} 16. Bf6 {[%clk 0:04:14.8]} 16... cxd4 {[%clk
0:03:48.2]} 17. cxd4 {[%clk 0:04:11.3]} 17... Rxc1 {[%clk 0:03:44.7]} 18. Rxc1
{[%clk 0:04:09]} 18... Rc8 {[%clk 0:03:44.1]} 19. Rc3 {[%clk 0:03:29]} 19...
Rxc3 {[%clk 0:03:31.4]} 20. Qxc3 {[%clk 0:03:27.6]} 20... Qc7 {[%clk 0:03:27.8]}
21. Qd2 {[%clk 0:03:15.7]} 21... Nb8 {[%clk 0:02:46.4]} 22. Bxg7 {[%clk
0:02:59.4]} 22... Kxg7 {[%clk 0:02:45]} 23. g4 {[%clk 0:02:55.3]} 23... hxg4
{[%clk 0:02:10.9]} 24. Ng5 {[%clk 0:02:39]} 24... Qe7 {[%clk 0:01:22.5]} 25. Qf4
{[%clk 0:02:34.8]} 25... Nd7 {[%clk 0:01:16.9]} 26. Qxg4 {[%clk 0:02:28.7]}
26... Kh6 {[%clk 0:00:27.3]} 27. Kg2 {[%clk 0:02:22]} 27... Nf8 {[%clk
0:00:11.7]} 28. Qf4 {[%clk 0:02:11.8]} 28... Kg7 {[%clk 0:00:09.1]} 29. a3
{[%clk 0:02:10.4]} 29... Nh7 {[%clk 0:00:06.7]} 30. Nf3 {[%clk 0:02:08.6]} 1-0

[Event "Live Chess"]
[Site "Chess.com"]
[Date "2024.06.02"]
[Round "-"]
[White "Tatarinov_Maxim"]
[Black "CarmelJane"]
[Result "1-0"]
[WhiteElo "2284"]
[BlackElo "1988"]
[TimeControl "300"]
[EndTime "6:10:33 PDT"]
[Termination "Tatarinov_Maxim won by resignation"]

1. Nf3 {[%clk 0:04:57.1]} 1... Nf6 {[%clk 0:04:58.4]} 2. c4 {[%clk 0:04:55.7]}
2... e6 {[%clk 0:04:56.8]} 3. g3 {[%clk 0:04:55.2]} 3... b6 {[%clk 0:04:55.7]}
4. Bg2 {[%clk 0:04:55.1]} 4... Bb7 {[%clk 0:04:55.3]} 5. O-O {[%clk 0:04:54.2]}
5... g6 {[%clk 0:04:53.5]} 6. d4 {[%clk 0:04:53.7]} 6... Bg7 {[%clk 0:04:52.7]}
7. Nc3 {[%clk 0:04:51.9]} 7... Ne4 {[%clk 0:04:51.7]} 8. Qc2 {[%clk 0:04:49.2]}
8... Nxc3 {[%clk 0:04:50.2]} 9. Qxc3 {[%clk 0:04:49.1]} 9... O-O {[%clk
0:04:48.6]} 10. Rd1 {[%clk 0:04:41.3]} 10... d6 {[%clk 0:04:47.9]} 11. Qd2
{[%clk 0:04:31.1]} 11... Nd7 {[%clk 0:04:46.7]} 12. b3 {[%clk 0:04:30.5]} 12...
Qc8 {[%clk 0:04:37.9]} 13. Bb2 {[%clk 0:04:29.3]} 13... Nf6 {[%clk 0:04:33.3]}
14. Rac1 {[%clk 0:04:27.1]} 14... Ne4 {[%clk 0:04:32.3]} 15. Qc2 {[%clk
0:04:26.4]} 15... Qd8 {[%clk 0:04:00.6]} 16. Nd2 {[%clk 0:04:24.5]} 16... f5
{[%clk 0:03:52.6]} 17. Nxe4 {[%clk 0:04:22.3]} 17... fxe4 {[%clk 0:03:52.1]} 18.
Bxe4 {[%clk 0:04:21.3]} 18... d5 {[%clk 0:03:49.4]} 19. Bg2 {[%clk 0:04:13.8]}
19... Qf6 {[%clk 0:03:43.6]} 20. e3 {[%clk 0:04:11.7]} 20... c6 {[%clk
0:03:37.7]} 21. Re1 {[%clk 0:04:03.1]} 21... Rac8 {[%clk 0:03:32.4]} 22. e4
{[%clk 0:03:59.5]} 22... dxe4 {[%clk 0:03:19.3]} 23. Bxe4 {[%clk 0:03:57.7]}
23... Rcd8 {[%clk 0:03:07.6]} 24. Bg2 {[%clk 0:03:54.1]} 24... Bc8 {[%clk
0:03:02]} 25. Bxc6 {[%clk 0:03:47.9]} 25... Qg5 {[%clk 0:02:52.1]} 26. Rcd1
{[%clk 0:03:40.5]} 26... h5 {[%clk 0:02:48.2]} 27. Bg2 {[%clk 0:03:35.7]} 27...
h4 {[%clk 0:02:47]} 28. d5 {[%clk 0:03:16.1]} 28... hxg3 {[%clk 0:02:42.9]} 29.
hxg3 {[%clk 0:03:10.2]} 29... Bxb2 {[%clk 0:02:34.9]} 30. Qxb2 {[%clk
0:03:10.1]} 30... exd5 {[%clk 0:02:10]} 31. Rxd5 {[%clk 0:03:10]} 31... Rxd5
{[%clk 0:02:00.9]} 32. Bxd5+ {[%clk 0:03:09.9]} 32... Kh7 {[%clk 0:02:00]} 33.
Qe5 {[%clk 0:02:55.2]} 1-0

[Event "Live Chess"]
[Site "Chess.com"]
[Date "2024.06.02"]
[Round "-"]
[White "BostonStrangler"]
[Black "TheSmoulderingMaster"]
[Result "1-0"]
[WhiteElo "2133"]
[BlackElo "1762"]
[TimeControl "300"]
[EndTime "6:10:38 PDT"]
[Termination "BostonStrangler won by checkmate"]

1. e4 {[%clk 0:04:57.1]} 1... c5 {[%clk 0:04:54.6]} 2. Nf3 {[%clk 0:04:54.9]}
2... d6 {[%clk 0:04:53.8]} 3. d4 {[%clk 0:04:53.6]} 3... cxd4 {[%clk 0:04:53.2]}
4. Qxd4 {[%clk 0:04:53.2]} 4... Nc6 {[%clk 0:04:51.5]} 5. Bb5 {[%clk 0:04:51.6]}
5... Bd7 {[%clk 0:04:50]} 6. Bxc6 {[%clk 0:04:50.5]} 6... bxc6 {[%clk
0:04:49.1]} 7. c4 {[%clk 0:04:49.9]} 7... Nf6 {[%clk 0:04:47.2]} 8. Nc3 {[%clk
0:04:48.6]} 8... g6 {[%clk 0:04:46.4]} 9. h3 {[%clk 0:04:43.6]} 9... Bg7 {[%clk
0:04:45.3]} 10. Qe3 {[%clk 0:04:42.7]} 10... O-O {[%clk 0:04:44.4]} 11. O-O
{[%clk 0:04:40.7]} 11... Qa5 {[%clk 0:04:40.2]} 12. Rd1 {[%clk 0:04:39]} 12...
Be6 {[%clk 0:04:34.5]} 13. e5 {[%clk 0:04:30.6]} 13... Nh5 {[%clk 0:04:30.5]}
14. exd6 {[%clk 0:04:26.8]} 14... exd6 {[%clk 0:04:29.7]} 15. Rxd6 {[%clk
0:04:24.3]} 15... Bxc4 {[%clk 0:04:27.5]} 16. Rxc6 {[%clk 0:04:20.4]} 16... Rac8
{[%clk 0:04:23.1]} 17. Rxc8 {[%clk 0:04:11.8]} 17... Rxc8 {[%clk 0:04:20.8]} 18.
g4 {[%clk 0:04:09.5]} 18... Nf6 {[%clk 0:04:16.8]} 19. Bd2 {[%clk 0:04:07.7]}
19... Nd5 {[%clk 0:04:13.5]} 20. Nxd5 {[%clk 0:04:05.4]} 20... Qxd5 {[%clk
0:04:12.6]} 21. Bc3 {[%clk 0:04:02.1]} 21... Bxc3 {[%clk 0:04:09.3]} 22. Qxc3
{[%clk 0:03:54.6]} 22... Ba6 {[%clk 0:04:07.7]} 23. Qe3 {[%clk 0:03:49.8]} 23...
Bb7 {[%clk 0:04:05]} 24. Kg2 {[%clk 0:03:38.8]} 24... Rc6 {[%clk 0:03:56.3]} 25.
Kg3 {[%clk 0:03:36.8]} 25... Rf6 {[%clk 0:03:52.6]} 26. Ne1 {[%clk 0:03:18.4]}
26... Qh1 {[%clk 0:03:41.6]} 27. Rc1 {[%clk 0:02:59.6]} 27... Qg1+ {[%clk
0:03:37.3]} 28. Kh4 {[%clk 0:02:57.8]} 28... Rxf2 {[%clk 0:03:29.9]} 29. Rc7
{[%clk 0:02:45.6]} 29... g5+ {[%clk 0:03:21.5]} 30. Kh5 {[%clk 0:02:17.8]} 30...
Bd5 {[%clk 0:03:08.1]} 31. Qe8+ {[%clk 0:02:05]} 31... Kg7 {[%clk 0:03:07]} 32.
Qe5+ {[%clk 0:02:01.7]} 32... Rf6 {[%clk 0:03:02.5]} 33. Qxd5 {[%clk 0:01:42.6]}
33... Qxe1 {[%clk 0:02:58.9]} 34. Qxg5+ {[%clk 0:01:30.5]} 34... Rg6 {[%clk
0:02:54.6]} 35. Qf4 {[%clk 0:01:25.1]} 35... Qe6 {[%clk 0:02:43.3]} 36. Kh4
{[%clk 0:01:15]} 36... Qe1+ {[%clk 0:02:39.1]} 37. Kh5 {[%clk 0:01:13]} 37...
Qe6 {[%clk 0:02:16.2]} 38. Kh4 {[%clk 0:00:24.4]} 38... Qb6 {[%clk 0:02:07.4]}
39. Qxf7+ {[%clk 0:00:18]} 39... Kh6 {[%clk 0:02:02.1]} 40. Qxh7# {[%clk
0:00:16.4]} 1-0

[Event "Live Chess"]
[Site "Chess.com"]
[Date "2024.06.02"]
[Round "-"]
[White "TC2304"]
[Black "gmnorfolk"]
[Result "0-1"]
[WhiteElo "2321"]
[BlackElo "2155"]
[TimeControl "300"]
[EndTime "6:10:52 PDT"]
[Termination "gmnorfolk won by checkmate"]

1. a4 {[%clk 0:04:57.4]} 1... c6 {[%clk 0:04:57.1]} 2. h4 {[%clk 0:04:55.2]}
2... d5 {[%clk 0:04:55.5]} 3. d4 {[%clk 0:04:50.6]} 3... Nf6 {[%clk 0:04:52]} 4.
h5 {[%clk 0:04:48.9]} 4... h6 {[%clk 0:04:50.5]} 5. Nc3 {[%clk 0:04:42.7]} 5...
Bf5 {[%clk 0:04:48.8]} 6. f3 {[%clk 0:04:41.6]} 6... e6 {[%clk 0:04:47.8]} 7. g4
{[%clk 0:04:40.7]} 7... Bh7 {[%clk 0:04:45.9]} 8. Bf4 {[%clk 0:04:26.3]} 8...
Bb4 {[%clk 0:04:39.7]} 9. e3 {[%clk 0:04:23.2]} 9... c5 {[%clk 0:04:29.6]} 10.
Bb5+ {[%clk 0:04:21.5]} 10... Nc6 {[%clk 0:04:26.9]} 11. Ne2 {[%clk 0:04:17.1]}
11... Rc8 {[%clk 0:04:18.1]} 12. dxc5 {[%clk 0:03:52.2]} 12... O-O {[%clk
0:04:12.4]} 13. Kf2 {[%clk 0:03:40]} 13... Bxc5 {[%clk 0:04:11.2]} 14. Nd4
{[%clk 0:03:38]} 14... e5 {[%clk 0:04:08.5]} 15. Bxc6 {[%clk 0:03:28.8]} 15...
exf4 {[%clk 0:04:04.6]} 16. Bxb7 {[%clk 0:03:26.4]} 16... fxe3+ {[%clk
0:04:00.4]} 17. Kxe3 {[%clk 0:03:25.1]} 17... Re8+ {[%clk 0:03:57.2]} 18. Kf2
{[%clk 0:03:24.5]} 18... Rb8 {[%clk 0:03:49.7]} 19. Bc6 {[%clk 0:03:10.6]} 19...
Nxg4+ {[%clk 0:03:48.8]} 20. fxg4 {[%clk 0:03:09.1]} 20... Qf6+ {[%clk
0:03:48.3]} 21. Qf3 {[%clk 0:03:04.4]} 21... Bxd4+ {[%clk 0:03:35.2]} 22. Kg2
{[%clk 0:03:03.5]} 22... Bxc3 {[%clk 0:03:20.9]} 23. Qxf6 {[%clk 0:02:52.7]}
23... Bxf6 {[%clk 0:03:15.9]} 24. Bxe8 {[%clk 0:02:50.4]} 24... Be4+ {[%clk
0:03:12.2]} 25. Kf2 {[%clk 0:02:18.7]} 25... Bd4+ {[%clk 0:03:05.2]} 26. Ke2
{[%clk 0:02:07.6]} 26... Rxe8 {[%clk 0:03:01.1]} 27. Rhd1 {[%clk 0:01:59.4]}
27... Bxb2 {[%clk 0:02:46.5]} 28. Rab1 {[%clk 0:01:35.3]} 28... Bxc2+ {[%clk
0:02:44.6]} 29. Kf3 {[%clk 0:01:32.6]} 29... Bxd1+ {[%clk 0:02:37.7]} 30. Rxd1
{[%clk 0:01:32.5]} 30... d4 {[%clk 0:02:36.7]} 31. g5 {[%clk 0:01:31]} 31...
hxg5 {[%clk 0:02:34.7]} 32. a5 {[%clk 0:01:30.9]} 32... Bc3 {[%clk 0:02:33.1]}
33. a6 {[%clk 0:01:29.9]} 33... Re6 {[%clk 0:02:32.2]} 34. Kg4 {[%clk
0:01:27.3]} 34... Rxa6 {[%clk 0:02:29.7]} 35. Kxg5 {[%clk 0:01:26.9]} 35... Kh7
{[%clk 0:02:27.8]} 36. Rf1 {[%clk 0:01:24.5]} 36... f6+ {[%clk 0:02:25.8]} 37.
Kg4 {[%clk 0:01:21]} 37... Ra5 {[%clk 0:02:25]} 38. Rb1 {[%clk 0:01:17.3]} 38...
Rg5+ {[%clk 0:02:22.9]} 39. Kh4 {[%clk 0:01:16.7]} 39... a5 {[%clk 0:02:20.9]}
40. Rb8 {[%clk 0:01:11.7]} 40... d3 {[%clk 0:02:16.8]} 41. h6 {[%clk 0:01:10.8]}
41... d2 {[%clk 0:02:14.7]} 42. hxg7 {[%clk 0:01:00.1]} 42... Rxg7 {[%clk
0:02:13.5]} 43. Kh5 {[%clk 0:00:47.2]} 43... Rg5+ {[%clk 0:02:11.2]} 44. Kh4
{[%clk 0:00:46]} 44... d1=Q {[%clk 0:02:06.2]} 45. Rb7+ {[%clk 0:00:44.9]} 45...
Rg7 {[%clk 0:02:03]} 46. Rb1 {[%clk 0:00:38.9]} 46... Qg4# {[%clk 0:02:00.2]}
0-1

[Event "Live Chess"]
[Site "Chess.com"]
[Date "2024.06.02"]
[Round "-"]
[White "V1nas"]
[Black "McCarthyStone"]
[Result "0-1"]
[WhiteElo "1315"]
[BlackElo "2484"]
[TimeControl "300"]
[EndTime "6:10:59 PDT"]
[Termination "McCarthyStone won by resignation"]

1. d4 {[%clk 0:04:58.5]} 1... g6 {[%clk 0:04:54.7]} 2. Nc3 {[%clk 0:04:55.8]}
2... Bg7 {[%clk 0:04:53.9]} 3. e4 {[%clk 0:04:55.3]} 3... c5 {[%clk 0:04:53]} 4.
d5 {[%clk 0:04:51.5]} 4... d6 {[%clk 0:04:51.6]} 5. Nf3 {[%clk 0:04:49.3]} 5...
a6 {[%clk 0:04:49.8]} 6. a4 {[%clk 0:04:44.3]} 6... Nf6 {[%clk 0:04:48.1]} 7.
Bd3 {[%clk 0:04:38.2]} 7... Bg4 {[%clk 0:04:46.9]} 8. h3 {[%clk 0:04:34.9]} 8...
Bxf3 {[%clk 0:04:46.4]} 9. Qxf3 {[%clk 0:04:34]} 9... O-O {[%clk 0:04:46.3]} 10.
O-O {[%clk 0:04:32.8]} 10... Nbd7 {[%clk 0:04:45.5]} 11. a5 {[%clk 0:04:30.9]}
11... Ne5 {[%clk 0:04:44.4]} 12. Qe2 {[%clk 0:04:29]} 12... Nxd3 {[%clk
0:04:44]} 13. Qxd3 {[%clk 0:04:28.9]} 13... b5 {[%clk 0:04:42.9]} 14. axb6
{[%clk 0:04:23.4]} 14... Qxb6 {[%clk 0:04:41.9]} 15. Be3 {[%clk 0:04:13.5]}
15... Nd7 {[%clk 0:04:37.9]} 16. f4 {[%clk 0:04:04.8]} 16... Qxb2 {[%clk
0:04:36.2]} 17. Rfb1 {[%clk 0:04:02.1]} 17... Qxc3 {[%clk 0:04:35]} 18. Qxc3
{[%clk 0:03:57.3]} 18... Bxc3 {[%clk 0:04:34.9]} 19. Ra3 {[%clk 0:03:53.6]}
19... Bd4 {[%clk 0:04:34]} 20. Bxd4 {[%clk 0:03:51.4]} 20... cxd4 {[%clk
0:04:33.9]} 21. Rb7 {[%clk 0:03:49.7]} 21... Rfd8 {[%clk 0:04:29.7]} 22. Kf2
{[%clk 0:03:47]} 22... Kf8 {[%clk 0:04:28.8]} 23. Rab3 {[%clk 0:03:46.2]} 23...
Nc5 {[%clk 0:04:28.1]} 0-1

[Event "Live Chess"]
[Site "Chess.com"]
[Date "2024.06.02"]
[Round "-"]
[White "Bradfield133"]
[Black "DoYouLikeCurry"]
[Result "1-0"]
[WhiteElo "1865"]
[BlackElo "1446"]
[TimeControl "300"]
[EndTime "6:11:01 PDT"]
[Termination "Bradfield133 won on time"]

1. c4 {[%clk 0:04:56.9]} 1... Nf6 {[%clk 0:04:57.5]} 2. g3 {[%clk 0:04:55.9]}
2... e6 {[%clk 0:04:53.3]} 3. Nf3 {[%clk 0:04:53.1]} 3... c6 {[%clk 0:04:50.4]}
4. Bg2 {[%clk 0:04:50.9]} 4... d5 {[%clk 0:04:46.5]} 5. b3 {[%clk 0:04:49.4]}
5... Be7 {[%clk 0:04:40.4]} 6. e3 {[%clk 0:04:41.6]} 6... b6 {[%clk 0:04:30.4]}
7. Bb2 {[%clk 0:04:38.1]} 7... O-O {[%clk 0:04:21]} 8. Ne5 {[%clk 0:04:26.9]}
8... Bb7 {[%clk 0:04:01.8]} 9. O-O {[%clk 0:04:21.9]} 9... Nbd7 {[%clk
0:04:00.4]} 10. f4 {[%clk 0:04:15]} 10... Nxe5 {[%clk 0:03:41.9]} 11. fxe5
{[%clk 0:04:09.1]} 11... Nd7 {[%clk 0:03:37.8]} 12. cxd5 {[%clk 0:04:00.2]}
12... cxd5 {[%clk 0:03:33.8]} 13. Nc3 {[%clk 0:03:39.7]} 13... Nxe5 {[%clk
0:03:17.5]} 14. d4 {[%clk 0:02:59.7]} 14... Nd7 {[%clk 0:03:03.1]} 15. Rc1
{[%clk 0:02:47]} 15... Bg5 {[%clk 0:02:39.6]} 16. Qf3 {[%clk 0:02:38.1]} 16...
Qf6 {[%clk 0:02:19.3]} 17. Ne2 {[%clk 0:02:21.2]} 17... Qxf3 {[%clk 0:02:13.9]}
18. Rxf3 {[%clk 0:02:19.9]} 18... Nf6 {[%clk 0:02:06.7]} 19. h4 {[%clk
0:02:09.3]} 19... Bh6 {[%clk 0:01:58.2]} 20. Bh3 {[%clk 0:02:04.5]} 20... Rac8
{[%clk 0:01:46.9]} 21. g4 {[%clk 0:01:55.8]} 21... Rxc1+ {[%clk 0:01:21.6]} 22.
Bxc1 {[%clk 0:01:52.1]} 22... Ne4 {[%clk 0:01:05.4]} 23. g5 {[%clk 0:01:46.6]}
23... Nxg5 {[%clk 0:01:04.1]} 24. hxg5 {[%clk 0:01:44.6]} 24... Bxg5 {[%clk
0:01:03.7]} 25. Nc3 {[%clk 0:01:14.8]} 25... Rc8 {[%clk 0:00:58.6]} 26. Bb2
{[%clk 0:01:13]} 26... Bh6 {[%clk 0:00:38]} 27. Bf1 {[%clk 0:01:09.5]} 27... e5
{[%clk 0:00:23.9]} 28. Nb5 {[%clk 0:00:55.6]} 28... exd4 {[%clk 0:00:21.1]} 29.
Nxd4 {[%clk 0:00:49.6]} 29... Re8 {[%clk 0:00:18.8]} 30. Kf2 {[%clk 0:00:40.5]}
30... a6 {[%clk 0:00:08]} 31. Bd3 {[%clk 0:00:28.9]} 31... g6 {[%clk 0:00:07.3]}
32. a3 {[%clk 0:00:22.6]} 32... Bg7 {[%clk 0:00:06.8]} 33. b4 {[%clk 0:00:18.8]}
33... Bxd4 {[%clk 0:00:06.3]} 34. Bxd4 {[%clk 0:00:16.6]} 34... Rc8 {[%clk
0:00:06]} 35. Bxb6 {[%clk 0:00:13.8]} 35... Rc1 {[%clk 0:00:04.6]} 36. Bd4
{[%clk 0:00:11.7]} 36... Rd1 {[%clk 0:00:02.7]} 37. Be2 {[%clk 0:00:09.7]} 37...
Ra1 {[%clk 0:00:01.6]} 38. Rf6 {[%clk 0:00:08.3]} 38... Rxa3 {[%clk 0:00:00.3]}
39. Rb6 {[%clk 0:00:07.1]} 1-0